[Event "*** SCC Grand Prix: Titled Tuesday Blitz"]
[Site "Chess.com"]
[Date "2020.09.29"]
[Round "9"]
[White "davidkalashian"]
[Black "abykhovsky"]
[Result "0-1"]
[WhiteElo "2592"]
[BlackElo "2741"]
[TimeControl "180+1"]
[EndTime "11:43:53 PDT"]
[Termination "abykhovsky won by checkmate"]

1. d4 {[%clk 0:03:00.9]} 1... Nf6 {[%clk 0:02:52]} 2. c4 {[%clk 0:03:00.3]} 2...
c5 {[%clk 0:02:50.9]} 3. Nf3 {[%clk 0:02:59.1]} 3... cxd4 {[%clk 0:02:51]} 4.
Nxd4 {[%clk 0:02:58.6]} 4... Nc6 {[%clk 0:02:51.9]} 5. g3 {[%clk 0:02:56.9]}
5... Qb6 {[%clk 0:02:49.9]} 6. Nb3 {[%clk 0:02:51.9]} 6... Ne5 {[%clk
0:02:49.4]} 7. Bg2 {[%clk 0:02:32.9]} 7... Nxc4 {[%clk 0:02:46.6]} 8. O-O {[%clk
0:02:32.6]} 8... e6 {[%clk 0:02:46.9]} 9. Nc3 {[%clk 0:02:31.7]} 9... d5 {[%clk
0:02:34.6]} 10. e4 {[%clk 0:02:06.9]} 10... dxe4 {[%clk 0:02:32.1]} 11. Nxe4
{[%clk 0:02:00.9]} 11... Nxe4 {[%clk 0:02:28.3]} 12. Bxe4 {[%clk 0:02:01.8]}
12... Be7 {[%clk 0:02:27.7]} 13. Bf4 {[%clk 0:01:56.8]} 13... e5 {[%clk
0:02:15.1]} 14. Bc1 {[%clk 0:01:44.5]} 14... Be6 {[%clk 0:02:10.9]} 15. Qf3
{[%clk 0:01:31.2]} 15... Nd6 {[%clk 0:02:02.4]} 16. Be3 {[%clk 0:01:22.9]} 16...
Qb5 {[%clk 0:01:58.9]} 17. Nc5 {[%clk 0:01:15.1]} 17... Bh3 {[%clk 0:01:51]} 18.
Nxb7 {[%clk 0:01:06.4]} 18... Nxe4 {[%clk 0:01:48.9]} 19. Qxe4 {[%clk
0:00:58.5]} 19... Rb8 {[%clk 0:01:42.2]} 20. Nc5 {[%clk 0:00:23.9]} 20... Bxf1
{[%clk 0:01:39.2]} 21. a4 {[%clk 0:00:16.4]} 21... Qb6 {[%clk 0:01:38]} 22. Rxf1
{[%clk 0:00:13.5]} 22... O-O {[%clk 0:00:54.6]} 23. Nd7 {[%clk 0:00:10.6]} 23...
Qb7 {[%clk 0:00:54.8]} 24. Qxb7 {[%clk 0:00:06.7]} 24... Rxb7 {[%clk 0:00:55.7]}
25. Nxf8 {[%clk 0:00:06.8]} 25... Kxf8 {[%clk 0:00:56.3]} 26. Rc1 {[%clk
0:00:06.6]} 26... f6 {[%clk 0:00:56.7]} 27. Rc6 {[%clk 0:00:05.6]} 27... a5
{[%clk 0:00:51.6]} 28. Bd2 {[%clk 0:00:04.1]} 28... Bb4 {[%clk 0:00:51.5]} 29.
Bxb4+ {[%clk 0:00:01.7]} 29... Rxb4 {[%clk 0:00:52.4]} 30. Ra6 {[%clk 0:00:02]}
30... Rxa4 {[%clk 0:00:52.7]} 31. Ra7 {[%clk 0:00:02.9]} 31... h5 {[%clk
0:00:52]} 32. Kg2 {[%clk 0:00:02.5]} 32... g5 {[%clk 0:00:50.3]} 33. h4 {[%clk
0:00:03.4]} 33... gxh4 {[%clk 0:00:50.5]} 34. gxh4 {[%clk 0:00:04.1]} 34... Rxh4
{[%clk 0:00:47.3]} 35. Rxa5 {[%clk 0:00:02.8]} 35... Rb4 {[%clk 0:00:47.7]} 36.
Ra8+ {[%clk 0:00:03]} 36... Kf7 {[%clk 0:00:47.7]} 37. Ra7+ {[%clk 0:00:03.9]}
37... Kg6 {[%clk 0:00:48.1]} 38. Ra2 {[%clk 0:00:04.4]} 38... Kf5 {[%clk
0:00:48.2]} 39. Kf3 {[%clk 0:00:03.5]} 39... Rb3+ {[%clk 0:00:48.4]} 40. Kg2
{[%clk 0:00:03.9]} 40... Kf4 {[%clk 0:00:48]} 41. Kh2 {[%clk 0:00:03.6]} 41...
e4 {[%clk 0:00:47.2]} 42. Kg2 {[%clk 0:00:04.5]} 42... f5 {[%clk 0:00:47.7]} 43.
Kh2 {[%clk 0:00:05.4]} 43... h4 {[%clk 0:00:48.1]} 44. Kg2 {[%clk 0:00:05.9]}
44... h3+ {[%clk 0:00:48.7]} 45. Kh2 {[%clk 0:00:06.7]} 45... Kf3 {[%clk
0:00:49.2]} 46. Ra3 {[%clk 0:00:06.2]} 46... Rxa3 {[%clk 0:00:48.4]} 47. bxa3
{[%clk 0:00:06.9]} 47... Kxf2 {[%clk 0:00:49.3]} 48. a4 {[%clk 0:00:06.9]} 48...
e3 {[%clk 0:00:50.2]} 49. a5 {[%clk 0:00:07.8]} 49... e2 {[%clk 0:00:51.1]} 50.
a6 {[%clk 0:00:08.3]} 50... e1=Q {[%clk 0:00:52]} 51. a7 {[%clk 0:00:09.1]}
51... Qg1+ {[%clk 0:00:52.5]} 52. Kxh3 {[%clk 0:00:09.2]} 52... Qg3# {[%clk
0:00:53.4]} 0-1

[Event "*** SCC Grand Prix: Titled Tuesday Blitz"]
[Site "Chess.com"]
[Date "2020.09.29"]
[Round "9"]
[White "CM_rui"]
[Black "kidagent"]
[Result "0-1"]
[WhiteElo "2372"]
[BlackElo "2299"]
[TimeControl "180+1"]
[EndTime "11:43:54 PDT"]
[Termination "kidagent won on time"]

1. e4 {[%clk 0:03:00.9]} 1... c5 {[%clk 0:02:59.8]} 2. Nf3 {[%clk 0:03:01.2]}
2... d6 {[%clk 0:03:00.1]} 3. d4 {[%clk 0:03:00.3]} 3... cxd4 {[%clk 0:03:00.7]}
4. Nxd4 {[%clk 0:03:01.2]} 4... Nf6 {[%clk 0:03:00.8]} 5. f3 {[%clk 0:03:01.8]}
5... a6 {[%clk 0:02:59.2]} 6. c4 {[%clk 0:03:01.3]} 6... e5 {[%clk 0:02:57.8]}
7. Nc2 {[%clk 0:03:00.8]} 7... Be7 {[%clk 0:02:56.8]} 8. Nc3 {[%clk 0:03:01.1]}
8... O-O {[%clk 0:02:57.4]} 9. Be2 {[%clk 0:03:01.2]} 9... Be6 {[%clk
0:02:56.3]} 10. Be3 {[%clk 0:03:01]} 10... Nc6 {[%clk 0:02:56.6]} 11. O-O {[%clk
0:03:00.6]} 11... Rc8 {[%clk 0:02:57.1]} 12. Rc1 {[%clk 0:03:00.2]} 12... Nd7
{[%clk 0:02:55]} 13. b3 {[%clk 0:02:57.7]} 13... f5 {[%clk 0:02:54.1]} 14. Qd2
{[%clk 0:02:54.4]} 14... f4 {[%clk 0:02:53.4]} 15. Bf2 {[%clk 0:02:54.6]} 15...
g5 {[%clk 0:02:53.7]} 16. h3 {[%clk 0:02:51.5]} 16... h5 {[%clk 0:02:52.8]} 17.
Rfd1 {[%clk 0:02:47.8]} 17... Kh7 {[%clk 0:02:45.1]} 18. Nd5 {[%clk 0:02:33.4]}
18... Bxd5 {[%clk 0:02:43.3]} 19. exd5 {[%clk 0:02:33.7]} 19... Ncb8 {[%clk
0:02:39.6]} 20. Bd3+ {[%clk 0:02:25.3]} 20... Kh6 {[%clk 0:02:37.1]} 21. Qe2
{[%clk 0:02:24.1]} 21... Nf6 {[%clk 0:02:35.6]} 22. Ne1 {[%clk 0:02:12.7]} 22...
Rg8 {[%clk 0:02:35]} 23. Bb1 {[%clk 0:02:11.6]} 23... Nbd7 {[%clk 0:02:30.5]}
24. Qc2 {[%clk 0:02:07.4]} 24... Nf8 {[%clk 0:02:30.2]} 25. h4 {[%clk
0:01:59.3]} 25... g4 {[%clk 0:02:26.6]} 26. fxg4 {[%clk 0:01:57.9]} 26... Nxg4
{[%clk 0:02:19.1]} 27. Nf3 {[%clk 0:01:51.4]} 27... Nxf2 {[%clk 0:02:10.4]} 28.
Kxf2 {[%clk 0:01:43.9]} 28... Bxh4+ {[%clk 0:02:08.8]} 29. Kf1 {[%clk
0:01:37.7]} 29... Rc7 {[%clk 0:02:04]} 30. Qf5 {[%clk 0:01:24.7]} 30... Rcg7
{[%clk 0:02:00.7]} 31. Rd2 {[%clk 0:01:18]} 31... Be7 {[%clk 0:01:55.5]} 32. c5
{[%clk 0:01:08]} 32... Qd7 {[%clk 0:01:48.1]} 33. Qe4 {[%clk 0:00:54.2]} 33...
Qg4 {[%clk 0:01:10.9]} 34. cxd6 {[%clk 0:00:45.7]} 34... Bxd6 {[%clk 0:01:10.5]}
35. Nxe5 {[%clk 0:00:40.3]} 35... Qh4 {[%clk 0:01:06.9]} 36. Nf3 {[%clk
0:00:29]} 36... Qh1+ {[%clk 0:01:05.5]} 37. Ng1 {[%clk 0:00:29.4]} 37... Qh4
{[%clk 0:00:26.5]} 38. Rc8 {[%clk 0:00:27.2]} 38... Re7 {[%clk 0:00:19.2]} 0-1

[Event "*** SCC Grand Prix: Titled Tuesday Blitz"]
[Site "Chess.com"]
[Date "2020.09.29"]
[Round "9"]
[White "dyziotomi99"]
[Black "fighter2jz"]
[Result "0-1"]
[WhiteElo "2473"]
[BlackElo "2650"]
[TimeControl "180+1"]
[EndTime "11:43:56 PDT"]
[Termination "fighter2jz won by checkmate"]

1. d4 {[%clk 0:03:00.9]} 1... Nf6 {[%clk 0:02:02.3]} 2. c4 {[%clk 0:02:59.8]}
2... g6 {[%clk 0:02:00.4]} 3. f3 {[%clk 0:02:59.6]} 3... e5 {[%clk 0:01:59.7]}
4. d5 {[%clk 0:02:51.7]} 4... Bc5 {[%clk 0:01:58.9]} 5. Nc3 {[%clk 0:02:43.4]}
5... d6 {[%clk 0:01:57.7]} 6. Bg5 {[%clk 0:02:37.5]} 6... h6 {[%clk 0:01:54.7]}
7. Bh4 {[%clk 0:02:30.2]} 7... g5 {[%clk 0:01:52.8]} 8. Bg3 {[%clk 0:02:29.1]}
8... h5 {[%clk 0:01:41]} 9. e4 {[%clk 0:02:26.2]} 9... g4 {[%clk 0:01:34.6]} 10.
Qd2 {[%clk 0:02:20.5]} 10... gxf3 {[%clk 0:01:28.3]} 11. Nxf3 {[%clk 0:02:17.4]}
11... Ng4 {[%clk 0:01:27.8]} 12. Bh4 {[%clk 0:01:53.7]} 12... Qd7 {[%clk
0:01:23.8]} 13. h3 {[%clk 0:01:52.7]} 13... Ne3 {[%clk 0:01:23.2]} 14. Qe2
{[%clk 0:01:47.7]} 14... f5 {[%clk 0:01:21.2]} 15. Bf2 {[%clk 0:01:42.1]} 15...
f4 {[%clk 0:01:20.5]} 16. a3 {[%clk 0:01:36.8]} 16... a5 {[%clk 0:01:20.3]} 17.
Nd1 {[%clk 0:01:36.6]} 17... Nxf1 {[%clk 0:01:02.4]} 18. Rxf1 {[%clk 0:01:33.7]}
18... Na6 {[%clk 0:01:02.3]} 19. Ng5 {[%clk 0:01:20.5]} 19... Qg7 {[%clk
0:01:00.7]} 20. h4 {[%clk 0:01:19.5]} 20... Bg4 {[%clk 0:01:00.5]} 21. Qc2
{[%clk 0:01:15.5]} 21... O-O-O {[%clk 0:00:56.7]} 22. Bxc5 {[%clk 0:01:15.1]}
22... dxc5 {[%clk 0:00:51]} 23. Nf2 {[%clk 0:01:14.4]} 23... Bd7 {[%clk
0:00:45.8]} 24. O-O-O {[%clk 0:01:11.7]} 24... Rh6 {[%clk 0:00:46.3]} 25. Nd3
{[%clk 0:01:07.8]} 25... Re8 {[%clk 0:00:45.3]} 26. Qc3 {[%clk 0:01:03]} 26...
Qe7 {[%clk 0:00:41]} 27. Qxa5 {[%clk 0:00:58.6]} 27... Rb6 {[%clk 0:00:40.6]}
28. Qc3 {[%clk 0:00:53]} 28... Bg4 {[%clk 0:00:38.7]} 29. Rd2 {[%clk 0:00:49.4]}
29... Kb8 {[%clk 0:00:37.8]} 30. g3 {[%clk 0:00:46]} 30... fxg3 {[%clk
0:00:36.2]} 31. Rf7 {[%clk 0:00:46]} 31... Qd8 {[%clk 0:00:34.7]} 32. Nxe5
{[%clk 0:00:45.2]} 32... Rf6 {[%clk 0:00:33.9]} 33. Nxg4 {[%clk 0:00:41]} 33...
hxg4 {[%clk 0:00:32.4]} 34. Qxg3 {[%clk 0:00:41.2]} 34... Rxf7 {[%clk
0:00:32.6]} 35. Nxf7 {[%clk 0:00:39.4]} 35... Qf6 {[%clk 0:00:32.8]} 36. Rf2
{[%clk 0:00:33.9]} 36... Qd4 {[%clk 0:00:30.2]} 37. Ng5 {[%clk 0:00:28.9]} 37...
Qxc4+ {[%clk 0:00:27.2]} 38. Kb1 {[%clk 0:00:27.3]} 38... Qd4 {[%clk 0:00:24.6]}
39. h5 {[%clk 0:00:26.1]} 39... c4 {[%clk 0:00:23]} 40. Rc2 {[%clk 0:00:23.2]}
40... Nc5 {[%clk 0:00:22]} 41. h6 {[%clk 0:00:18.4]} 41... Nb3 {[%clk
0:00:22.1]} 42. Ne6 {[%clk 0:00:15.2]} 42... Qd1+ {[%clk 0:00:21.9]} 43. Ka2
{[%clk 0:00:14.9]} 43... Qa1# {[%clk 0:00:22.5]} 0-1

[Event "*** SCC Grand Prix: Titled Tuesday Blitz"]
[Site "Chess.com"]
[Date "2020.09.29"]
[Round "9"]
[White "korkmaz16"]
[Black "beto-betun"]
[Result "1-0"]
[WhiteElo "2330"]
[BlackElo "2145"]
[TimeControl "180+1"]
[EndTime "11:43:56 PDT"]
[Termination "korkmaz16 won by resignation"]

1. e4 {[%clk 0:03:00.9]} 1... c5 {[%clk 0:02:58.8]} 2. Nc3 {[%clk 0:02:59.3]}
2... Nc6 {[%clk 0:02:58.1]} 3. f4 {[%clk 0:02:59.3]} 3... g6 {[%clk 0:02:57.8]}
4. Nf3 {[%clk 0:02:59.2]} 4... Bg7 {[%clk 0:02:57.7]} 5. Bb5 {[%clk 0:02:59.2]}
5... Nd4 {[%clk 0:02:48.9]} 6. O-O {[%clk 0:02:58.7]} 6... a6 {[%clk 0:02:48.2]}
7. Bd3 {[%clk 0:02:58.3]} 7... e6 {[%clk 0:02:44.2]} 8. Nxd4 {[%clk 0:02:56.9]}
8... cxd4 {[%clk 0:02:42.5]} 9. Ne2 {[%clk 0:02:56.3]} 9... Ne7 {[%clk
0:02:41.3]} 10. b4 {[%clk 0:02:37]} 10... d5 {[%clk 0:02:39.2]} 11. e5 {[%clk
0:02:36.6]} 11... O-O {[%clk 0:02:36]} 12. Bb2 {[%clk 0:02:36]} 12... Qb6 {[%clk
0:02:19.9]} 13. a3 {[%clk 0:02:20.2]} 13... a5 {[%clk 0:01:58.8]} 14. Bxd4
{[%clk 0:02:15.2]} 14... Qc7 {[%clk 0:01:51.6]} 15. Bc5 {[%clk 0:02:10.9]} 15...
axb4 {[%clk 0:01:25.8]} 16. axb4 {[%clk 0:02:08.9]} 16... Rxa1 {[%clk
0:01:25.6]} 17. Qxa1 {[%clk 0:02:08.6]} 17... Rd8 {[%clk 0:01:01.2]} 18. Nd4
{[%clk 0:02:05.7]} 18... Nc6 {[%clk 0:00:55.2]} 19. Nb5 {[%clk 0:01:59]} 19...
Qd7 {[%clk 0:00:49.9]} 20. Nd6 {[%clk 0:01:39.6]} 20... Bf8 {[%clk 0:00:49.2]}
21. Bb5 {[%clk 0:01:33.2]} 21... Bh6 {[%clk 0:00:45.1]} 22. Qa4 {[%clk
0:01:30.9]} 22... Bf8 {[%clk 0:00:32.5]} 23. d4 {[%clk 0:01:27.5]} 23... Be7
{[%clk 0:00:30.6]} 24. Ra1 {[%clk 0:01:17.9]} 24... Kg7 {[%clk 0:00:29.4]} 25.
c3 {[%clk 0:01:15]} 25... f6 {[%clk 0:00:27.4]} 26. Bf1 {[%clk 0:01:13.8]} 26...
f5 {[%clk 0:00:24.9]} 27. b5 {[%clk 0:01:11.1]} 27... Nb8 {[%clk 0:00:23.1]} 28.
Qa7 {[%clk 0:01:09]} 28... Qc7 {[%clk 0:00:20.6]} 29. Bb6 {[%clk 0:01:05.7]}
29... Qxc3 {[%clk 0:00:17.3]} 30. Bxd8 {[%clk 0:01:05.6]} 30... Bxd8 {[%clk
0:00:17.1]} 31. Rd1 {[%clk 0:00:58.5]} 31... Nd7 {[%clk 0:00:14.3]} 32. Qa8
{[%clk 0:00:56.8]} 32... Bb6 {[%clk 0:00:13.8]} 33. Qxc8 {[%clk 0:00:56.1]}
33... Bxd4+ {[%clk 0:00:14.7]} 34. Kh1 {[%clk 0:00:56.5]} 34... Qe3 {[%clk
0:00:14.6]} 35. Bc4 {[%clk 0:00:56.5]} 35... Nc5 {[%clk 0:00:13]} 36. Qc7+
{[%clk 0:00:55.7]} 36... Kh6 {[%clk 0:00:13.5]} 37. Nf7+ {[%clk 0:00:55.8]}
37... Kh5 {[%clk 0:00:13.2]} 38. Ng5 {[%clk 0:00:56.2]} 38... Ne4 {[%clk
0:00:13]} 39. Qxh7+ {[%clk 0:00:55.7]} 39... Kg4 {[%clk 0:00:12.4]} 40. Qh3+
{[%clk 0:00:55.8]} 40... Qxh3 {[%clk 0:00:11.8]} 41. Nxh3 {[%clk 0:00:55.2]}
41... Be3 {[%clk 0:00:08.8]} 42. Bd3 {[%clk 0:00:54.5]} 42... Bxf4 {[%clk
0:00:08.6]} 43. Bxe4 {[%clk 0:00:54.8]} 43... fxe4 {[%clk 0:00:09]} 44. Nxf4
{[%clk 0:00:55]} 44... Kxf4 {[%clk 0:00:09.9]} 45. Kg1 {[%clk 0:00:53.5]} 45...
Kxe5 {[%clk 0:00:10.8]} 46. Kf2 {[%clk 0:00:53.4]} 46... d4 {[%clk 0:00:11.7]}
47. Rc1 {[%clk 0:00:53.5]} 47... Kd5 {[%clk 0:00:12.6]} 48. Rc7 {[%clk
0:00:53.4]} 48... e5 {[%clk 0:00:13.5]} 49. Rxb7 {[%clk 0:00:52.9]} 49... e3+
{[%clk 0:00:14.4]} 50. Ke2 {[%clk 0:00:52.6]} 50... Kc4 {[%clk 0:00:15.3]} 51.
Rd7 {[%clk 0:00:50.9]} 51... Kxb5 {[%clk 0:00:16.2]} 52. Rd5+ {[%clk 0:00:51.1]}
52... Kc4 {[%clk 0:00:16.4]} 53. Rxe5 {[%clk 0:00:51.4]} 53... d3+ {[%clk
0:00:17.3]} 54. Kxe3 {[%clk 0:00:51.3]} 54... Kc3 {[%clk 0:00:18.2]} 55. Rd5
{[%clk 0:00:51.5]} 55... d2 {[%clk 0:00:16]} 56. Rxd2 {[%clk 0:00:51]} 56... g5
{[%clk 0:00:16.9]} 57. Rd5 {[%clk 0:00:47.4]} 57... g4 {[%clk 0:00:17.8]} 1-0

[Event "*** SCC Grand Prix: Titled Tuesday Blitz"]
[Site "Chess.com"]
[Date "2020.09.29"]
[Round "9"]
[White "Morshynska"]
[Black "canary2016"]
[Result "1-0"]
[WhiteElo "2192"]
[BlackElo "1924"]
[TimeControl "180+1"]
[EndTime "11:43:59 PDT"]
[Termination "Morshynska won on time"]

1. Nf3 {[%clk 0:03:00.9]} 1... d5 {[%clk 0:02:58.9]} 2. g3 {[%clk 0:03:01.6]}
2... Bg4 {[%clk 0:02:55.6]} 3. Bg2 {[%clk 0:03:01.9]} 3... Nf6 {[%clk
0:02:54.2]} 4. Ne5 {[%clk 0:03:01.1]} 4... Bf5 {[%clk 0:02:52]} 5. c4 {[%clk
0:03:00.8]} 5... c6 {[%clk 0:02:49.7]} 6. cxd5 {[%clk 0:02:56.5]} 6... cxd5
{[%clk 0:02:47]} 7. Qb3 {[%clk 0:02:44.7]} 7... Nbd7 {[%clk 0:02:21.1]} 8. d4
{[%clk 0:02:27.5]} 8... Nb6 {[%clk 0:02:04.4]} 9. Nc3 {[%clk 0:02:23.7]} 9... e6
{[%clk 0:02:03.7]} 10. a4 {[%clk 0:02:21.3]} 10... Qc7 {[%clk 0:01:52.6]} 11.
Bf4 {[%clk 0:01:50]} 11... Bd6 {[%clk 0:01:41]} 12. Nb5 {[%clk 0:01:43.9]} 12...
Qb8 {[%clk 0:01:23.7]} 13. Nxd6+ {[%clk 0:01:39.7]} 13... Qxd6 {[%clk
0:01:23.2]} 14. Nxf7 {[%clk 0:01:34.6]} 14... Qe7 {[%clk 0:01:21.3]} 15. Nxh8
{[%clk 0:01:31.1]} 15... Kf8 {[%clk 0:01:18.8]} 16. h3 {[%clk 0:01:18.9]} 16...
Kg8 {[%clk 0:01:17.2]} 17. g4 {[%clk 0:01:17.5]} 17... Be4 {[%clk 0:01:14.9]}
18. f3 {[%clk 0:01:14]} 18... Kxh8 {[%clk 0:01:05.1]} 19. fxe4 {[%clk
0:01:12.8]} 19... Nxe4 {[%clk 0:01:04.8]} 20. O-O {[%clk 0:01:09.7]} 20... Rf8
{[%clk 0:00:57.7]} 21. Be5 {[%clk 0:01:05]} 21... Rd8 {[%clk 0:00:53.1]} 22. Qd3
{[%clk 0:00:54.6]} 22... Ng5 {[%clk 0:00:48]} 23. b3 {[%clk 0:00:49.3]} 23...
Nd7 {[%clk 0:00:44]} 24. Bg3 {[%clk 0:00:47.6]} 24... Nf6 {[%clk 0:00:40.2]} 25.
Bh4 {[%clk 0:00:45.5]} 25... h6 {[%clk 0:00:24.9]} 26. Rac1 {[%clk 0:00:44.6]}
26... Qd6 {[%clk 0:00:20.2]} 27. Qg3 {[%clk 0:00:41.1]} 27... Qb6 {[%clk
0:00:18.2]} 28. Rfd1 {[%clk 0:00:26.5]} 28... Rf8 {[%clk 0:00:11.6]} 29. Kh2
{[%clk 0:00:22.3]} 29... Nge4 {[%clk 0:00:10.8]} 30. Qe3 {[%clk 0:00:20.9]}
30... Nd6 {[%clk 0:00:06.5]} 31. Bxf6 {[%clk 0:00:19.8]} 31... Rxf6 {[%clk
0:00:05.7]} 32. Rf1 {[%clk 0:00:20.4]} 32... Rg6 {[%clk 0:00:03.2]} 33. Qe5
{[%clk 0:00:19.1]} 33... Nc4 {[%clk 0:00:01.9]} 34. bxc4 {[%clk 0:00:18.9]}
34... dxc4 {[%clk 0:00:02.3]} 35. Rxc4 {[%clk 0:00:19.4]} 35... Qb3 {[%clk
0:00:01.9]} 36. Rc8+ {[%clk 0:00:19.1]} 36... Kh7 {[%clk 0:00:01.3]} 37. Rff8
{[%clk 0:00:19.3]} 37... Rf6 {[%clk 0:00:01.5]} 38. Rxf6 {[%clk 0:00:18.7]}
38... gxf6 {[%clk 0:00:01.3]} 39. Qxf6 {[%clk 0:00:19.6]} 1-0

[Event "*** SCC Grand Prix: Titled Tuesday Blitz"]
[Site "Chess.com"]
[Date "2020.09.29"]
[Round "9"]
[White "pavelalexandru07"]
[Black "AntonovaNadezhda"]
[Result "1-0"]
[WhiteElo "2210"]
[BlackElo "2045"]
[TimeControl "180+1"]
[EndTime "11:44:04 PDT"]
[Termination "pavelalexandru07 won by resignation"]

1. a3 {[%clk 0:03:00.9]} 1... d6 {[%clk 0:02:59.6]} 2. g3 {[%clk 0:02:59.6]}
2... Nf6 {[%clk 0:03:00.1]} 3. Bg2 {[%clk 0:03:00]} 3... g6 {[%clk 0:03:00.7]}
4. Nf3 {[%clk 0:03:00.4]} 4... Bg7 {[%clk 0:03:01.4]} 5. O-O {[%clk 0:03:00.8]}
5... O-O {[%clk 0:03:01.9]} 6. d4 {[%clk 0:02:59]} 6... Nbd7 {[%clk 0:02:52.9]}
7. Nc3 {[%clk 0:02:58.8]} 7... c5 {[%clk 0:02:48.1]} 8. d5 {[%clk 0:02:58.8]}
8... Rb8 {[%clk 0:02:42.8]} 9. a4 {[%clk 0:02:58.5]} 9... b6 {[%clk 0:02:41.3]}
10. e4 {[%clk 0:02:56.2]} 10... Ne8 {[%clk 0:02:38.5]} 11. Re1 {[%clk
0:02:55.3]} 11... Nc7 {[%clk 0:02:38]} 12. Nb5 {[%clk 0:02:45.9]} 12... a6
{[%clk 0:02:36.7]} 13. Nxc7 {[%clk 0:02:44.9]} 13... Qxc7 {[%clk 0:02:37.2]} 14.
c4 {[%clk 0:02:44.5]} 14... b5 {[%clk 0:02:36.4]} 15. axb5 {[%clk 0:02:44.2]}
15... axb5 {[%clk 0:02:36.5]} 16. cxb5 {[%clk 0:02:43.7]} 16... Rxb5 {[%clk
0:02:36.4]} 17. Qc2 {[%clk 0:02:42.1]} 17... Qb6 {[%clk 0:02:23.9]} 18. Ra2
{[%clk 0:02:39.4]} 18... Ne5 {[%clk 0:02:16.9]} 19. Nd2 {[%clk 0:02:36.5]} 19...
g5 {[%clk 0:02:01.5]} 20. h3 {[%clk 0:02:34.6]} 20... Bd7 {[%clk 0:01:52.5]} 21.
Kh2 {[%clk 0:02:24.7]} 21... Rb8 {[%clk 0:01:51.3]} 22. f4 {[%clk 0:02:18.4]}
22... gxf4 {[%clk 0:01:47]} 23. gxf4 {[%clk 0:02:17.3]} 23... Ng6 {[%clk
0:01:47.5]} 24. Nc4 {[%clk 0:02:16]} 24... Qb7 {[%clk 0:01:48]} 25. e5 {[%clk
0:02:13.2]} 25... Rb4 {[%clk 0:01:30.7]} 26. exd6 {[%clk 0:01:58.7]} 26... exd6
{[%clk 0:01:22.5]} 27. Nxd6 {[%clk 0:01:57.7]} 27... Qc7 {[%clk 0:01:20.8]} 28.
Nc4 {[%clk 0:01:52.8]} 28... Nxf4 {[%clk 0:01:16.2]} 29. d6 {[%clk 0:01:52.8]}
29... Qd8 {[%clk 0:00:44]} 30. Bxf4 {[%clk 0:01:48.1]} 30... Be6 {[%clk
0:00:44]} 31. b3 {[%clk 0:01:35.3]} 31... Rxb3 {[%clk 0:00:39.5]} 32. Na5 {[%clk
0:01:32.1]} 32... Rc3 {[%clk 0:00:34.3]} 33. Nc6 {[%clk 0:01:12.5]} 33... Rxc2
{[%clk 0:00:32.5]} 34. Rxc2 {[%clk 0:01:10.5]} 34... Qf6 {[%clk 0:00:27]} 35.
Be5 {[%clk 0:01:07.6]} 35... Qf5 {[%clk 0:00:20.1]} 36. Ne7+ {[%clk 0:00:52.1]}
36... Kf8 {[%clk 0:00:18.3]} 37. Nxf5 {[%clk 0:00:53]} 37... Bxf5 {[%clk
0:00:18.3]} 38. Bxg7+ {[%clk 0:00:51.4]} 38... Kxg7 {[%clk 0:00:17.3]} 39. Rxc5
{[%clk 0:00:52]} 39... Rd8 {[%clk 0:00:16.9]} 40. Rd5 {[%clk 0:00:50.7]} 40...
Be6 {[%clk 0:00:16.3]} 41. Rd4 {[%clk 0:00:50.1]} 41... Rd7 {[%clk 0:00:16.8]}
42. Bc6 {[%clk 0:00:49.7]} 42... Rd8 {[%clk 0:00:16.1]} 43. d7 {[%clk
0:00:50.2]} 43... Kf6 {[%clk 0:00:16.5]} 44. Kg3 {[%clk 0:00:48.7]} 44... Ke7
{[%clk 0:00:17]} 45. Kf4 {[%clk 0:00:48.9]} 45... Rf8 {[%clk 0:00:14.9]} 46.
Red1 {[%clk 0:00:43.7]} 46... Rd8 {[%clk 0:00:15.2]} 47. h4 {[%clk 0:00:40.9]}
47... h6 {[%clk 0:00:14.2]} 48. Bd5 {[%clk 0:00:39.6]} 48... Bxd7 {[%clk
0:00:12.6]} 49. Bxf7 {[%clk 0:00:39.2]} 1-0

[Event "*** SCC Grand Prix: Titled Tuesday Blitz"]
[Site "Chess.com"]
[Date "2020.09.29"]
[Round "9"]
[White "Violord"]
[Black "Marcin"]
[Result "1-0"]
[WhiteElo "2689"]
[BlackElo "2477"]
[TimeControl "180+1"]
[EndTime "11:44:10 PDT"]
[Termination "Violord won by resignation"]

1. e4 {[%clk 0:02:54.5]} 1... c5 {[%clk 0:02:56.3]} 2. Nf3 {[%clk 0:02:53.5]}
2... e6 {[%clk 0:02:56.5]} 3. c3 {[%clk 0:02:52.9]} 3... d5 {[%clk 0:02:50.5]}
4. exd5 {[%clk 0:02:52.7]} 4... Qxd5 {[%clk 0:02:49.8]} 5. d4 {[%clk 0:02:52.7]}
5... Nf6 {[%clk 0:02:50]} 6. Be3 {[%clk 0:02:51.9]} 6... cxd4 {[%clk 0:02:48.5]}
7. Nxd4 {[%clk 0:02:51.5]} 7... a6 {[%clk 0:02:48.5]} 8. Nd2 {[%clk 0:02:47.2]}
8... Be7 {[%clk 0:02:46.8]} 9. Be2 {[%clk 0:02:43.4]} 9... O-O {[%clk
0:02:46.5]} 10. Bf3 {[%clk 0:02:43.2]} 10... Qd8 {[%clk 0:02:44.5]} 11. O-O
{[%clk 0:02:43.8]} 11... Nd5 {[%clk 0:02:42.5]} 12. Qe2 {[%clk 0:02:35.1]} 12...
Nxe3 {[%clk 0:02:37.3]} 13. fxe3 {[%clk 0:02:34.6]} 13... Nd7 {[%clk 0:02:33.8]}
14. Nc4 {[%clk 0:02:14.3]} 14... Qc7 {[%clk 0:02:29.1]} 15. a4 {[%clk
0:02:10.4]} 15... Ne5 {[%clk 0:02:19]} 16. Nxe5 {[%clk 0:02:09.4]} 16... Qxe5
{[%clk 0:02:18.2]} 17. a5 {[%clk 0:02:10]} 17... Rb8 {[%clk 0:02:18.3]} 18. b4
{[%clk 0:02:07.8]} 18... Bd7 {[%clk 0:02:17.7]} 19. Qf2 {[%clk 0:02:02.8]} 19...
Bg5 {[%clk 0:02:00.4]} 20. Rae1 {[%clk 0:02:01.2]} 20... Rbc8 {[%clk 0:01:20.3]}
21. Bxb7 {[%clk 0:01:56.6]} 21... Rxc3 {[%clk 0:01:20.2]} 22. Nf3 {[%clk
0:01:57.3]} 22... Qxe3 {[%clk 0:01:09.1]} 23. Nxg5 {[%clk 0:01:54.3]} 23... Qxg5
{[%clk 0:01:08.8]} 24. Bxa6 {[%clk 0:01:54.8]} 24... Bc6 {[%clk 0:01:08.5]} 25.
Be2 {[%clk 0:01:46.7]} 25... Rc2 {[%clk 0:01:04.4]} 26. Qg3 {[%clk 0:01:38.3]}
26... Qd2 {[%clk 0:00:52.2]} 27. b5 {[%clk 0:01:33.2]} 27... Bd5 {[%clk
0:00:50.6]} 28. a6 {[%clk 0:01:30]} 28... f5 {[%clk 0:00:43.4]} 29. Bf3 {[%clk
0:01:23.9]} 29... Bc4 {[%clk 0:00:36.5]} 30. Qe5 {[%clk 0:01:09.3]} 30... Bxf1
{[%clk 0:00:31.1]} 31. Rxf1 {[%clk 0:01:07.8]} 31... Ra2 {[%clk 0:00:29.4]} 32.
Qxe6+ {[%clk 0:01:06.3]} 32... Kh8 {[%clk 0:00:29.8]} 33. h3 {[%clk 0:00:59.2]}
33... Qd4+ {[%clk 0:00:29.3]} 34. Kh1 {[%clk 0:00:56.2]} 34... Rb2 {[%clk
0:00:27.3]} 35. Bc6 {[%clk 0:00:49.3]} 35... f4 {[%clk 0:00:26.2]} 36. Qe4
{[%clk 0:00:37.9]} 36... Qxe4 {[%clk 0:00:18.3]} 37. Bxe4 {[%clk 0:00:36.9]}
37... Rxb5 {[%clk 0:00:18.9]} 38. Ra1 {[%clk 0:00:37.3]} 38... Rb4 {[%clk
0:00:16.5]} 39. a7 {[%clk 0:00:34.9]} 39... Rxe4 {[%clk 0:00:13.7]} 40. a8=Q
{[%clk 0:00:34.2]} 40... Ree8 {[%clk 0:00:14.2]} 41. Qf3 {[%clk 0:00:33.3]}
41... Re3 {[%clk 0:00:13.5]} 42. Qd5 {[%clk 0:00:32.3]} 42... f3 {[%clk
0:00:12.3]} 43. gxf3 {[%clk 0:00:31.5]} 43... h6 {[%clk 0:00:12.3]} 44. Kg2
{[%clk 0:00:30.8]} 44... Re2+ {[%clk 0:00:11]} 45. Kg3 {[%clk 0:00:30.3]} 45...
Rf6 {[%clk 0:00:10.6]} 46. Ra8+ {[%clk 0:00:27.7]} 46... Kh7 {[%clk 0:00:10.4]}
47. Qd3+ {[%clk 0:00:25.9]} 1-0